bitfinex-derivatives/quotes_SOLF0:USTF0_20240920
["timestamp","ask_amount","ask_price","bid_price","bid_amount"]
[1726868196257,10.39,147.54,147.5,0.79614809]
[1726868196458,10.39,147.51,147.44,1.4067]
[1726868196651,10.39,147.48,147.44,1.4067]
[1726868197366,10.39,147.48,147.45,3.3902]
[1726868198260,10.39,147.48,147.44,1.4067]
[1726868198465,10.39,147.45,147.44,1.4067]
[1726868198666,10.39,147.45,147.37,1.3806]
[1726868198858,10.39,147.45,147.41,10.39]
[1726868199557,10.39,147.45,147.43,3.3909]
[1726868200264,3.32792313,147.48,147.37,2.7277]
[1726868200265,6.71782313,147.48,147.37,2.7277]
[1726868200465,1.2948,147.49,147.39,10.39]
[1726868200466,10.39,147.44,147.39,10.39]
[1726868200662,10.39,147.42,147.37,11.7706]
[1726868200963,10.39,147.42,147.37,1.3806]
[1726868201263,10.39,147.42,147.39,3.3916]
[1726868201463,1.3564,147.45,147.38,10.39]
[1726868201765,11.7464,147.45,147.41,10.39]
[1726868201968,11.7464,147.45,147.42,3.391]
[1726868201969,1.3564,147.45,147.42,3.391]
[1726868203466,10.39,147.44,147.42,3.391]
[1726868203972,10.39,147.44,147.43,3.3909]
[1726868204163,1.3564,147.45,147.39,10.39]
[1726868204661,10.39,147.44,147.39,10.39]
[1726868205058,10.39,147.44,147.41,3.3911]
[1726868205256,10.39,147.42,147.41,3.3911]
[1726868209370,1.3564,147.45,147.41,3.3911]
[1726868209671,10.39,147.42,147.41,3.3911]
[1726868209875,10.39,147.42,147.4,3.3915]
[1726868210074,10.39,147.41,147.4,3.3915]
[1726868217077,4.7469,147.45,147.4,3.3915]
[1726868217277,10.39,147.41,147.4,3.3915]
[1726868218383,10.39,147.41,147.39,3.3918]
[1726868218676,10.39,147.39,147.28,6.7885]
[1726868218874,10.39,147.38,147.33,9.4831]
[1726868219676,10.39,147.38,147.37,3.3923]
[1726868220885,10.39,147.39,147.35,10.39]
[1726868221880,10.39,147.39,147.38,3.392]
[1726868224473,10.39,147.39,147.3,6.766]
[1726868224781,10.39,147.36,147.3,18.4425]
[1726868225584,10.39,147.36,147.35,3.3926]
[1726868226080,3.38591607,147.39,147.35,3.3926]
[1726868226286,10.39,147.36,147.35,3.3926]
[1726868227987,3.4655436,147.39,147.36,3.3925]
[1726868228187,3.3913,147.41,147.36,3.3925]
[1726868228188,10.39,147.37,147.36,3.3925]
[1726868229587,10.39,147.37,147.35,3.3926]
[1726868229790,10.39,147.36,147.35,3.3926]
[1726868232089,10.39,147.37,147.32,17.156]
[1726868232289,10.39,147.37,147.33,10.39]
[1726868233297,10.39,147.37,147.3,8.0525]
[1726868233492,3.42245755,147.4,147.36,3.3925]
[1726868233698,3.3913,147.41,147.36,3.3925]
[1726868234192,6.7842419,147.41,147.36,3.3925]
[1726868234388,3.3913,147.41,147.36,3.3925]
[1726868234896,6.77168927,147.41,147.36,3.3925]
[1726868235596,10.39,147.37,147.36,3.3925]
[1726868235797,3.38038927,147.41,147.37,3.3922]
[1726868236104,10.39,147.38,147.37,3.3922]
[1726868237401,1.3445,147.43,147.37,10.39]
[1726868237705,10.39,147.43,147.38,10.39]
[1726868237897,10.39,147.43,147.4,10.39]
[1726868238096,10.39,147.44,147.4,10.39]
[1726868238703,10.39,147.43,147.4,10.39]
[1726868239003,2.7321,147.5,147.4,10.39]
[1726868239200,10.39,147.44,147.4,10.39]
[1726868239400,6.16503379,147.5,147.41,10.39]
[1726868239602,6.16503379,147.5,147.42,10.39]
[1726868239801,1.3551,147.56,147.43,10.39]
[1726868240105,10.39,147.48,147.43,10.39]
[1726868240305,10.39,147.48,147.47,3.39]
[1726868241801,23.73840278,147.61,147.47,10.39]
[1726868241999,10.39,147.53,147.47,10.39]
[1726868242803,10.39,147.53,147.5,3.3891]
[1726868243005,10.39,147.53,147.47,10.39]
[1726868244414,10.39,147.53,147.5,3.3891]
[1726868244812,10.39,147.52,147.5,3.3891]
[1726868245106,3.42137071,147.58,147.52,3.3888]
[1726868245317,10.39,147.54,147.49,10.39]
[1726868245611,10.39,147.54,147.51,3.3889]
[1726868246206,10.39,147.54,147.49,10.39]
[1726868248315,10.39,147.54,147.51,3.3889]
[1726868248712,10.39,147.52,147.46,1.3734]
[1726868248916,10.39,147.5,147.46,1.3734]
[1726868249318,10.39,147.5,147.48,3.3896]
[1726868249806,10.39,147.5,147.47,3.3899]
[1726868250011,10.39,147.49,147.47,3.3899]
[1726868250411,10.39,147.49,147.46,4.7636]
[1726868250617,10.39,147.49,147.46,1.3734]
[1726868250914,10.39,147.5,147.46,1.3734]
[1726868251114,10.39,147.5,147.46,11.7634]
[1726868251814,10.39,147.5,147.47,3.3898]
[1726868252326,10.39,147.5,147.46,11.7634]
[1726868253810,10.39,147.5,147.48,3.3897]
[1726868257127,10.39,147.5,147.46,1.3734]
[1726868257616,3.3882,147.55,147.49,3.3893]
[1726868257919,10.39,147.52,147.49,3.3893]
[1726868258922,10.39,147.52,147.47,10.39]
[1726868258923,10.39,147.52,147.48,3.3897]
[1726868260120,10.39,147.51,147.48,3.3897]
[1726868260518,4.7785,147.54,147.48,3.3897]
[1726868260822,10.39,147.52,147.48,3.3897]
[1726868264620,10.39,147.51,147.48,3.3897]
[1726868268520,10.39,147.51,147.47,3.3899]
[1726868269530,3.3886,147.53,147.48,3.3897]
[1726868269725,10.39,147.52,147.48,3.3897]
[1726868278232,3.3886,147.53,147.48,3.3897]
[1726868278419,10.39,147.52,147.48,3.3897]
[1726868286244,10.39,147.52,147.49,3.3895]
[1726868286840,10.39,147.52,147.47,10.39]
[1726868288742,10.39,147.52,147.48,3.3896]
[1726868298962,10.39,147.52,147.48,10.39]
[1726868299271,11.78,147.54,147.48,10.39]
[1726868299458,11.78,147.54,147.5,3.3891]
[1726868300258,1.39,147.54,147.51,10.39]
[1726868300572,4.6233987,147.6,147.53,10.39]
[1726868300573,10.39,147.58,147.53,10.39]
[1726868301666,10.39,147.58,147.55,3.3881]
[1726868303968,10.39,147.58,147.56,3.3878]
[1726868306570,10.39,147.57,147.56,3.3878]
[1726868312777,10.39,147.58,147.57,3.3875]
[1726868312977,10.39,147.58,147.53,10.39]
[1726868313776,10.39,147.58,147.56,3.3878]
[1726868318981,4.7937,147.59,147.56,3.3878]
[1726868319179,10.39,147.58,147.56,3.3878]
[1726868319479,13.7776,147.58,147.55,3.3881]
[1726868319782,10.39,147.57,147.52,10.39]
[1726868321577,13.7776,147.58,147.53,10.39]
[1726868321777,13.7776,147.58,147.54,3.3882]
[1726868327280,3.3877,147.57,147.46,8.1394]
[1726868327479,10.39,147.53,147.46,1.3734]
[1726868327680,1.4064,147.59,147.47,10.39]
[1726868327681,10.39,147.52,147.47,10.39]
[1726868328784,10.39,147.52,147.48,3.3896]
[1726868329886,10.39,147.52,147.47,10.39]
[1726868330891,10.39,147.52,147.48,3.3897]
[1726868334182,10.39,147.52,147.48,13.7797]
[1726868335190,13.7787,147.53,147.48,13.7797]
[1726868337295,13.7787,147.53,147.49,10.39]
[1726868340499,3.3887,147.53,147.5,10.39]
[1726868342695,3.3883,147.55,147.5,10.39]
[1726868342895,3.3883,147.55,147.51,10.39]
[1726868343298,3.3883,147.55,147.51,13.7789]
[1726868344297,3.3883,147.55,147.51,10.39]
[1726868344802,13.7783,147.55,147.51,10.39]
[1726868345604,13.7783,147.55,147.51,13.7789]
[1726868349899,13.7783,147.55,147.51,3.3889]
[1726868350103,3.3883,147.55,147.52,3.3888]
[1726868350402,13.7783,147.55,147.52,3.3888]
[1726868355706,10.39,147.54,147.52,3.3888]
[1726868358313,10.39,147.53,147.48,3.3896]
[1726868358603,10.39,147.51,147.48,3.3896]
[1726868358804,10.39,147.5,147.4,135.56]
[1726868359007,10.39,147.5,147.46,3.39]
[1726868359902,13.7793,147.5,147.41,2.6792]
[1726868360098,10.39,147.48,147.42,10.39]
[1726868360507,10.39,147.48,147.43,3.3908]
[1726868360811,13.71441328,147.48,147.43,3.3908]
[1726868361911,10.39,147.47,147.43,13.7808]
[1726868363808,10.39,147.46,147.37,112.3412414]
[1726868364018,13.7802,147.46,147.41,10.39]
[1726868365313,13.7802,147.46,147.41,13.7813]
[1726868367610,13.7802,147.46,147.41,3.3913]
[1726868367812,3.3907,147.44,147.37,112.3412414]
[1726868368014,13.7807,147.44,147.39,10.39]
[1726868368511,13.7807,147.44,147.39,13.7816]
[1726868370807,3.3907,147.44,147.39,13.7816]
[1726868372115,3.3907,147.44,147.39,3.3916]
[1726868372418,3.3907,147.44,147.4,10.39]
[1726868373417,3.3907,147.44,147.4,13.7816]
[1726868379122,13.7807,147.44,147.4,3.3916]
[1726868379728,3.3907,147.44,147.4,3.3916]
[1726868380025,13.7807,147.44,147.4,3.3916]
[1726868384626,13.7807,147.44,147.41,3.3913]
[1726868385522,3.3907,147.44,147.41,3.3913]
[1726868386019,3.391,147.43,147.38,10.39]
[1726868387228,6.83355716,147.43,147.34,2.7407]
[1726868387728,6.83355716,147.43,147.38,10.39]
[1726868387929,10.39,147.42,147.34,2.7407]
[1726868388230,10.39,147.42,147.37,10.39]
[1726868388930,13.7812,147.42,147.38,3.392]
[1726868389721,3.3912,147.42,147.38,3.392]
[1726868390734,10.39,147.41,147.36,3.3923]
[1726868391828,3.3916,147.4,147.36,3.3923]
[1726868392537,17.11316209,147.41,147.36,3.3923]
[1726868392739,13.72176209,147.41,147.36,3.3923]
[1726868393835,3.3917,147.4,147.36,3.3923]
[1726868397042,13.7817,147.4,147.36,3.3923]
[1726868397537,3.3917,147.4,147.36,3.3923]
[1726868398042,3.3917,147.4,147.36,13.7823]
[1726868399239,13.72176209,147.41,147.3,1.319]
[1726868399440,13.72176209,147.41,147.35,10.39]
[1726868399835,3.3917,147.4,147.36,3.3924]
[1726868400235,20.35,147.48,147.4,3.3915]
[1726868400434,23.67825658,147.48,147.39,10.39]
[1726868400644,10.39,147.45,147.39,10.39]
[1726868400942,10.39,147.44,147.38,10.39]
[1726868401334,3.3911,147.43,147.4,3.3914]
[1726868401739,10.39,147.44,147.39,10.39]
[1726868401943,3.32825658,147.48,147.43,10.39]
[1726868402142,10.39,147.48,147.43,10.39]
[1726868402444,17.16467951,147.47,147.43,13.7807]
[1726868402642,13.78,147.47,147.43,10.39]
[1726868402843,13.84930664,147.47,147.44,3.3905]
[1726868403944,10.39,147.46,147.44,3.3905]
[1726868408147,13.7802,147.46,147.43,3.3908]
[1726868408347,10.39,147.45,147.43,3.3908]
[1726868409654,3.3902,147.46,147.43,3.3908]
[1726868409955,10.39,147.45,147.43,3.3908]
[1726868411058,10.39,147.44,147.35,1.3577]
[1726868411251,10.39,147.4,147.35,11.7477]
[1726868411553,10.39,147.4,147.38,3.3919]
[1726868412855,10.39,147.41,147.38,3.3919]
[1726868414858,3.3917,147.4,147.35,1.3577]
[1726868415159,10.39,147.38,147.31,1.3657]
[1726868415353,10.39,147.37,147.34,3.3928]
[1726868415752,10.39,147.38,147.34,3.3928]
[1726868416153,13.80701475,147.38,147.34,3.3928]
[1726868417059,10.39,147.38,147.35,3.3927]
[1726868424563,17.18243641,147.39,147.35,3.3927]
[1726868425562,3.3915,147.41,147.34,10.39]
[1726868425760,10.39,147.41,147.35,10.39]
[1726868426455,13.7814,147.41,147.37,3.3921]
[1726868429474,10.39,147.4,147.37,3.3921]
[1726868430379,13.7817,147.4,147.36,3.3923]
[1726868430679,10.39,147.4,147.34,10.39]
[1726868431174,10.39,147.4,147.36,3.3924]
[1726868432781,13.7816,147.4,147.36,3.3924]
[1726868435283,10.39,147.4,147.36,3.3924]
[1726868439490,13.7816,147.4,147.36,3.3924]
[1726868439885,10.39,147.39,147.36,3.3924]
[1726868440986,13.7819,147.39,147.35,3.3927]
[1726868441386,3.3921,147.38,147.34,3.3929]
[1726868441688,10.39,147.39,147.33,10.39]
[1726868442885,13.7819,147.39,147.35,3.3927]
[1726868443585,10.39,147.39,147.33,10.39]
[1726868443788,13.7817,147.4,147.34,10.39]
[1726868444781,13.7817,147.4,147.36,3.3925]
[1726868448886,10.39,147.4,147.34,10.39]
[1726868449497,13.7816,147.4,147.36,3.3924]
[1726868450897,10.39,147.4,147.36,3.3924]
[1726868452292,13.7816,147.4,147.36,3.3924]
[1726868454401,10.39,147.37,147.31,11.7557]
[1726868454600,10.39,147.36,147.31,11.7557]
[1726868455201,10.39,147.37,147.34,3.3928]
[1726868458706,10.39,147.36,147.3,10.39]
[1726868459305,10.39,147.36,147.33,3.393]
[1726868463406,10.39,147.37,147.33,3.393]
[1726868463607,3.3922,147.38,147.34,3.3929]
[1726868464202,17.24483376,147.39,147.35,3.3927]
[1726868465716,17.24483376,147.39,147.33,10.39]
[1726868465717,3.46293376,147.39,147.36,3.3924]
[1726868465902,10.39,147.38,147.33,10.39]
[1726868466307,6.84318962,147.39,147.35,3.3926]
[1726868466508,3.392,147.39,147.35,3.3926]
[1726868466903,13.782,147.39,147.35,3.3926]
[1726868467104,17.1544759,147.39,147.35,3.3926]
[1726868470613,17.1544759,147.39,147.36,3.3925]
[1726868471114,13.7624759,147.39,147.36,3.3925]
[1726868472517,3.3724759,147.39,147.36,3.3925]
[1726868472711,10.39,147.38,147.36,3.3925]
[1726868473013,13.7817,147.4,147.37,3.3923]
[1726868477921,3.3917,147.4,147.37,3.3923]
[1726868478121,10.39,147.39,147.37,3.3923]
[1726868483022,10.39,147.39,147.34,10.39]
[1726868483219,10.39,147.41,147.36,10.39]
[1726868483419,4.06,147.45,147.37,10.39]
[1726868483721,10.39,147.42,147.37,10.39]
[1726868483928,10.39,147.43,147.37,10.39]
[1726868484318,10.39,147.43,147.41,3.3912]
[1726868484626,10.39,147.43,147.39,10.39]
[1726868485022,10.39,147.43,147.41,3.3912]
[1726868485324,10.39,147.43,147.39,10.39]
[1726868486813,10.39,147.43,147.41,3.3913]
[1726868488525,4.06,147.45,147.42,3.3911]
[1726868488726,10.39,147.44,147.42,3.3911]
[1726868488925,4.06,147.45,147.42,3.3911]
[1726868489227,10.39,147.44,147.42,3.3911]
[1726868490026,7.4504,147.45,147.42,3.3911]
[1726868490326,10.39,147.44,147.42,3.3911]
[1726868494827,10.39,147.44,147.41,3.3913]
[1726868500226,7.4504,147.45,147.41,3.3913]
[1726868500426,17.8404,147.45,147.41,3.3913]
[1726868500934,7.4504,147.45,147.41,3.3913]
[1726868501122,17.8404,147.45,147.41,3.3913]
[1726868501326,3.3907,147.44,147.41,3.3913]
[1726868504638,14.45,147.45,147.41,3.3913]
[1726868504639,7.4505,147.45,147.41,3.3913]
[1726868504839,17.8405,147.45,147.41,3.3913]
[1726868505340,3.3907,147.44,147.41,3.3913]
[1726868508730,17.8405,147.45,147.42,3.391]
[1726868509947,17.8405,147.45,147.41,3.3913]
[1726868510833,3.3907,147.44,147.4,3.3915]
[1726868511034,10.39,147.41,147.35,2.6506]
[1726868511237,10.39,147.37,147.28,1.2849]
[1726868511445,10.39,147.36,147.28,1.3028]
[1726868511644,10.39,147.36,147.31,10.39]
[1726868512143,10.39,147.36,147.28,1.3028]
[1726868512645,10.39,147.36,147.31,10.39]
[1726868512836,10.39,147.36,147.28,1.3028]
[1726868513035,10.39,147.36,147.32,10.39]
[1726868513936,10.39,147.36,147.32,13.7834]
[1726868526956,10.39,147.36,147.32,3.3934]
[1726868527251,10.39,147.36,147.32,13.7834]
[1726868532358,10.39,147.36,147.32,3.3934]
[1726868532546,10.39,147.36,147.32,13.7834]
[1726868534249,10.39,147.36,147.33,3.3932]
[1726868535459,10.39,147.35,147.28,1.3028]
[1726868535659,10.39,147.35,147.3,10.39]
[1726868536757,10.39,147.35,147.28,1.3028]
[1726868537158,10.39,147.35,147.3,10.39]
[1726868537361,10.39,147.35,147.31,3.3934]
[1726868538460,10.39,147.35,147.31,13.7834]
[1726868539169,13.7828,147.35,147.31,3.3934]
[1726868540870,13.7828,147.35,147.3,3.3938]
[1726868541965,13.7828,147.35,147.31,3.3936]
[1726868547687,3.3928,147.35,147.31,3.3936]
[1726868547881,13.7828,147.35,147.31,13.7836]
[1726868553085,13.7828,147.35,147.32,3.3934]
[1726868556985,10.39,147.35,147.32,3.3934]
[1726868561585,13.7829,147.35,147.31,3.3936]
[1726868562691,13.7829,147.35,147.32,3.3934]
[1726868562894,10.39,147.35,147.32,3.3934]
[1726868564884,6.1778,147.36,147.32,3.3934]
[1726868565089,16.5678,147.36,147.32,3.3934]
[1726868570489,16.5678,147.36,147.33,3.3932]
[1726868583907,13.1752,147.36,147.25,9.5107]
[1726868584104,13.1752,147.36,147.28,10.39]
[1726868584499,16.5678,147.36,147.32,3.3933]
[1726868584904,16.5678,147.36,147.28,10.39]
[1726868586106,16.5678,147.36,147.32,3.3933]
[1726868590101,6.1778,147.36,147.32,3.3933]
[1726868590409,13.1752,147.36,147.33,3.3932]
[1726868593318,16.5677,147.36,147.33,3.3932]
[1726868593805,10.39,147.35,147.33,3.3932]
[1726868595516,6.1777,147.36,147.33,3.3932]
[1726868595910,10.39,147.35,147.33,3.3932]
[1726868601620,17.1277235,147.37,147.34,3.3929]
[1726868602121,13.7353235,147.37,147.34,3.3929]
[1726868605323,17.1276235,147.37,147.34,3.3929]
[1726868606324,3.3923,147.37,147.34,3.3929]
[1726868606523,15.97784324,147.43,147.34,10.39]
[1726868606718,10.39,147.4,147.34,10.39]
[1726868606919,10.39,147.4,147.38,3.392]
[1726868607825,10.39,147.4,147.36,10.39]
[1726868608120,10.39,147.41,147.36,10.39]
[1726868608328,10.39,147.41,147.39,3.3918]
[1726868608529,10.39,147.41,147.36,10.39]
[1726868608724,2.7994,147.43,147.36,10.39]
[1726868608926,10.39,147.42,147.37,10.39]
[1726868609226,10.39,147.43,147.38,10.39]
[1726868609427,10.39,147.43,147.41,3.3912]
[1726868609914,10.39,147.43,147.38,10.39]
[1726868610616,10.39,147.45,147.39,10.39]
[1726868611228,10.39,147.46,147.41,10.39]
[1726868612025,10.39,147.46,147.43,3.3909]
[1726868612426,13.7802,147.46,147.41,10.39]
[1726868613027,10.39,147.45,147.41,10.39]
[1726868613833,10.39,147.45,147.42,3.391]
[1726868616232,3.42242415,147.47,147.43,3.3908]
[1726868616434,10.39,147.44,147.43,3.3908]
[1726868616728,3.42242415,147.47,147.39,10.39]
[1726868616923,10.39,147.45,147.42,3.391]
[1726868620038,10.39,147.45,147.43,3.3909]
[1726868620935,10.39,147.45,147.39,10.39]
[1726868621632,10.39,147.45,147.43,3.3908]
[1726868623337,13.78,147.47,147.43,3.3908]
[1726868624032,13.78,147.47,147.44,3.3906]
[1726868624739,3.39,147.47,147.44,3.3906]
[1726868625340,13.78,147.47,147.44,3.3906]
[1726868625638,10.39,147.47,147.44,3.3906]
[1726868626438,10.39,147.46,147.44,3.3906]
[1726868627636,3.39,147.47,147.44,3.3906]
[1726868627839,10.39,147.46,147.44,3.3906]
[1726868628638,10.39,147.46,147.43,3.3908]
[1726868630743,10.39,147.45,147.43,3.3908]
[1726868630943,3.39,147.47,147.43,3.3908]
[1726868631148,10.39,147.46,147.43,3.3908]
[1726868631340,8.08807887,147.48,147.44,3.3906]
[1726868631645,10.39,147.46,147.4,10.39]
[1726868632145,10.39,147.46,147.43,3.3907]
[1726868634634,10.39,147.46,147.44,3.3906]
[1726868635948,10.39,147.47,147.44,3.3906]
[1726868639859,8.08807887,147.48,147.44,3.3906]
[1726868640055,10.39,147.47,147.44,3.3906]
[1726868640254,8.08807887,147.48,147.44,3.3906]
[1726868640460,1.3262,147.51,147.45,3.3902]
[1726868640461,3.3896,147.49,147.45,3.3902]
[1726868640656,10.39,147.51,147.45,10.39]
[1726868640957,4.1518,147.55,147.47,3.3898]
[1726868641356,10.39,147.5,147.47,3.3898]
[1726868642460,10.39,147.48,147.42,1.3781]
[1726868642659,10.39,147.45,147.38,1.3006]
[1726868642858,10.39,147.45,147.39,10.39]
[1726868643158,10.39,147.45,147.4,10.39]
[1726868643661,10.39,147.47,147.41,10.39]
[1726868644971,10.39,147.47,147.45,3.3903]
[1726868645262,3.3894,147.5,147.43,10.39]
[1726868645560,10.39,147.48,147.43,10.39]
[1726868645763,10.39,147.48,147.38,2.69]
[1726868645957,10.39,147.48,147.46,3.39]
[1726868646261,10.39,147.48,147.43,10.39]
[1726868646658,10.39,147.5,147.46,3.39]
[1726868647160,10.39,147.5,147.45,10.39]
[1726868647466,10.39,147.5,147.47,3.3898]
[1726868647667,10.39,147.5,147.45,10.39]
[1726868647668,13.7789,147.52,147.46,10.39]
[1726868648159,10.39,147.51,147.46,10.39]
[1726868648360,10.39,147.51,147.48,3.3897]
[1726868648665,10.39,147.51,147.44,3.38735958]
[1726868648864,10.39,147.51,147.47,3.3898]
[1726868649163,13.7791,147.51,147.47,3.3898]
[1726868651067,10.39,147.51,147.48,3.3897]
[1726868651267,10.39,147.51,147.45,10.39]
[1726868652554,1.3993,147.54,147.45,10.39]
[1726868652864,13.7791,147.51,147.47,3.3899]
[1726868653062,13.7791,147.51,147.45,10.39]
[1726868653763,13.7791,147.51,147.46,3.3901]
[1726868655061,3.3891,147.51,147.47,3.39]
[1726868655271,13.7791,147.51,147.47,3.39]
[1726868655863,3.3891,147.51,147.47,3.39]
[1726868656063,3.3893,147.5,147.44,3.34125]
[1726868656270,10.39,147.51,147.46,10.39]
[1726868656471,1.3993,147.54,147.46,10.39]
[1726868656664,3.3889,147.52,147.47,13.7798]
[1726868657168,13.7787,147.53,147.49,3.3895]
[1726868657873,13.117,147.55,147.46,3.40001257]
[1726868658169,13.117,147.55,147.48,10.39]
[1726868658364,3.3885,147.54,147.49,3.3893]
[1726868659164,3.3885,147.54,147.5,3.3893]
[1726868659671,3.3885,147.54,147.5,13.7793]
[1726868659872,3.3882,147.55,147.51,3.389]
[1726868661063,3.3882,147.55,147.5,10.39]
[1726868661064,3.3882,147.55,147.5,13.7791]
[1726868661569,3.3882,147.55,147.51,3.389]
[1726868662971,3.3884,147.54,147.5,3.3892]
[1726868663166,3.3884,147.54,147.5,13.7792]
[1726868663970,3.3882,147.55,147.5,13.7792]
[1726868664874,3.3884,147.54,147.5,13.7792]
[1726868667170,3.3884,147.54,147.5,3.3892]
[1726868667366,10.39,147.53,147.48,1.4128]
[1726868667571,10.39,147.49,147.43,145.0519]
[1726868667773,2.6915,147.53,147.43,13.0709]
[1726868667967,10.39,147.48,147.43,13.0709]
[1726868668877,10.39,147.48,147.45,3.3903]
[1726868670374,13.7796,147.49,147.45,3.3903]
[1726868671075,10.39,147.47,147.38,1.29]
[1726868671273,3.30632876,147.5,147.39,10.39]
[1726868671274,10.39,147.44,147.39,10.39]
[1726868672281,3.3911,147.43,147.39,10.39]
[1726868674679,10.39,147.44,147.38,3.3919]
[1726868674981,10.39,147.44,147.39,10.39]
[1726868675283,3.3909,147.43,147.39,10.39]
[1726868678287,3.3909,147.43,147.39,13.7818]
[1726868684994,3.3909,147.43,147.39,3.3918]
[1726868685294,3.3909,147.43,147.39,13.7818]
[1726868686884,10.39,147.44,147.36,2.6405]
[1726868687089,10.39,147.44,147.39,10.39]
[1726868687496,3.391,147.43,147.39,13.7817]
[1726868688190,13.7807,147.44,147.39,13.7817]
[1726868689896,3.391,147.43,147.39,13.7817]
[1726868692498,13.781,147.43,147.39,3.3917]
[1726868698401,13.781,147.43,147.36,2.6405]
[1726868698805,13.781,147.43,147.39,3.3916]
[1726868708212,13.7811,147.42,147.38,3.3919]
[1726868708399,3.3911,147.42,147.38,3.3919]
[1726868708601,10.39,147.4,147.38,3.3919]
[1726868709315,10.39,147.41,147.38,3.3919]
[1726868715606,13.7815,147.41,147.37,13.7822]
[1726868715806,13.7815,147.41,147.37,3.3922]
[1726868716008,13.7815,147.41,147.3,2.7364]
[1726868716009,10.39,147.41,147.36,10.39]
[1726868716308,3.3916,147.4,147.36,13.7823]
[1726868717705,3.3916,147.4,147.36,3.3923]
[1726868717905,3.3916,147.4,147.36,13.7823]
[1726868718713,13.7816,147.4,147.36,13.7823]
[1726868719310,10.39,147.4,147.3,2.7364]
[1726868719514,10.39,147.39,147.32,10.39]
[1726868720306,13.79808692,147.39,147.32,10.39]
[1726868720511,3.3922,147.38,147.34,3.3928]
[1726868722023,13.7822,147.38,147.34,3.3928]
[1726868722425,3.40808692,147.39,147.3,2.7364]
[1726868722426,6.79998692,147.39,147.35,13.7827]
[1726868722628,3.38820357,147.42,147.38,10.39]
[1726868722829,10.39,147.44,147.38,10.39]
[1726868723328,3.391,147.43,147.39,3.3918]
[1726868723620,3.43808498,147.42,147.39,3.3918]
[1726868724020,10.39,147.44,147.39,3.3918]
[1726868724912,3.3912,147.42,147.39,3.3918]
[1726868725126,6.78187609,147.42,147.39,3.3918]
[1726868732328,3.3914,147.41,147.39,3.3918]
[1726868734822,3.3914,147.41,147.38,3.3919]
[1726868742529,17.17187609,147.42,147.38,3.3919]
[1726868744922,13.78067609,147.42,147.36,10.39]
[1726868745633,17.17187609,147.42,147.38,3.3918]
[1726868749931,6.78187609,147.42,147.38,3.3918]
[1726868750134,17.17187609,147.42,147.38,3.3918]
[1726868758142,17.17187609,147.42,147.39,3.3918]
[1726868762737,6.78187609,147.42,147.39,3.3918]
[1726868769657,6.78187609,147.42,147.38,3.3919]